fUST/lending_fUST_20250505
["ID","MTS","AMOUNT","RATE_DAILY","PERIOD"]
[359873403,1746396631935,-1130.6696222,0.00031587,2]
[359873404,1746396631946,-1600.0,0.00032697,3]
[359873405,1746396631955,-160.0,0.00032698,2]
[359873406,1746396631965,-400.0,0.00032699,2]
[359873407,1746396631975,-300.0,0.00032699,3]
[359873408,1746396631984,-152.12,0.000327,31]
[359873409,1746396631993,-152.12,0.000327,31]
[359873410,1746396632003,-152.12,0.000327,31]
[359873411,1746396632012,-152.12,0.000327,31]
[359873412,1746396632022,-152.12,0.000327,31]
[359873413,1746396632032,-152.12,0.000327,31]
[359873414,1746396632042,-152.12,0.000327,31]
[359873415,1746396632052,-152.12,0.000327,31]
[359873416,1746396632062,-152.12,0.000327,31]
[359873417,1746396632072,-152.12,0.000327,31]
[359873418,1746396632082,-157.6,0.000327,2]
[359873419,1746396632091,-998.3025594,0.00032877,5]
[359873420,1746396632101,-522.97651728,0.00032897,2]
[359873421,1746396632111,-1857.43804473,0.000329,27]
[359873422,1746396632122,-306.247293,0.00033165,2]
[359873423,1746396632132,-1857.43804458,0.00033176,28]
[359873424,1746396632141,-1857.43804458,0.00033452,28]
[359873425,1746396632151,-1857.43804458,0.00033728,29]
[359873426,1746396632160,-151.95168232,0.00034003,30]
[359873427,1746396632173,-428.38510128,0.00034003,30]
[359873440,1746396637899,-1277.10126098,0.00034003,30]
[359873441,1746396637909,-1857.43804458,0.00034279,30]
[359873442,1746396637919,-6385.56069444,0.00034399,3]
[359873443,1746396638065,-9775.65614064,0.00034399,3]
[359873444,1746396638075,-500.0,0.00034399,7]
[359873445,1746396638084,-500.0,0.00034399,7]
[359873446,1746396638094,-500.0,0.00034399,7]
[359873447,1746396638103,-500.0,0.00034399,7]
[359873448,1746396638116,-398.94021548,0.00034399,7]
[359873449,1746396638126,-500.0,0.00034399,7]
[359873450,1746396638136,-500.0,0.00034399,7]
[359873451,1746396638146,-341.32427888,0.00034399,7]
[359873452,1746396638157,-500.0,0.00034399,7]
[359873453,1746396638169,-500.0,0.00034399,7]
[359873454,1746396638182,-500.0,0.00034399,7]
[359873455,1746396638192,-500.0,0.00034399,7]
[359873456,1746396638202,-559.07997131,0.00034399,7]
[359873457,1746396638212,-500.0,0.00034399,7]
[359873458,1746396638222,-500.0,0.00034399,7]
[359873459,1746396638233,-500.0,0.00034399,7]
[359873460,1746396638243,-500.0,0.00034399,7]
[359873461,1746396638253,-500.0,0.00034399,7]
[359873462,1746396638263,-500.0,0.00034399,7]
[359873463,1746396638273,-500.0,0.00034399,7]
[359873464,1746396638282,-500.0,0.00034399,7]
[359873465,1746396638292,-500.0,0.00034399,7]
[359873466,1746396638302,-500.0,0.00034399,7]
[359873467,1746396638314,-500.0,0.00034399,7]
[359873468,1746396638324,-500.0,0.00034399,7]
[359873469,1746396638334,-500.0,0.00034399,7]
[359873470,1746396638343,-500.0,0.00034399,7]
[359873471,1746396638354,-500.0,0.00034399,7]
[359873472,1746396638364,-500.0,0.00034399,7]
[359873473,1746396638374,-500.0,0.00034399,7]
[359873474,1746396638384,-500.0,0.00034399,7]
[359873475,1746396638394,-500.0,0.00034399,7]
[359873476,1746396638403,-500.0,0.00034399,7]
[359873477,1746396638413,-500.0,0.00034399,7]
[359873478,1746396638425,-500.0,0.00034399,7]
[359873479,1746396638434,-500.0,0.00034399,7]
[359873480,1746396638444,-500.0,0.00034399,7]
[359873481,1746396638454,-500.0,0.00034399,7]
[359873482,1746396638463,-430.0,0.00034399,7]
[359873483,1746396638474,-500.0,0.00034399,7]
[359873484,1746396638484,-500.0,0.00034399,7]
[359873485,1746396638493,-500.0,0.00034399,7]
[359873486,1746396638503,-500.0,0.00034399,7]
[359873487,1746396638513,-160.0,0.00034399,7]
[359873488,1746396638523,-152.12,0.000344,31]
[359873489,1746396638532,-152.12,0.000344,31]
[359873490,1746396638542,-152.12,0.000344,31]
[359873491,1746396638552,-152.12,0.000344,31]
[359873492,1746396638561,-152.12,0.000344,31]
[359873493,1746396638571,-152.12,0.000344,31]
[359873494,1746396638580,-152.12,0.000344,31]
[359873495,1746396638589,-152.12,0.000344,31]
[359873496,1746396638599,-152.12,0.000344,31]
[359873497,1746396638609,-152.12,0.000344,31]
[359873498,1746396638618,-152.12,0.000344,31]
[359873499,1746396638628,-152.12,0.000344,31]
[359873500,1746396638638,-152.12,0.000344,31]
[359873501,1746396638647,-152.12,0.000344,31]
[359873502,1746396638657,-152.12,0.000344,31]
[359873503,1746396638666,-152.12,0.000344,31]
[359873504,1746396638678,-152.12,0.000344,31]
[359873505,1746396638688,-152.12,0.000344,31]
[359873506,1746396638698,-152.12,0.000344,31]
[359873507,1746396638708,-152.12,0.000344,31]
[359873508,1746396638719,-500.0,0.000344,5]
[359873509,1746396638729,-500.0,0.000344,5]
[359873510,1746396638739,-500.0,0.000344,5]
[359873511,1746396638749,-2914.7,0.000344,31]
[359873512,1746396638759,-2914.7,0.000344,31]
[359873513,1746396638769,-2914.7,0.000344,31]
[359873514,1746396638779,-2914.7,0.000344,31]
[359873515,1746396638789,-467.89882586,0.00034542,2]
[359873516,1746396638798,-1857.43804458,0.00034555,31]
[359873517,1746396638808,-19442.84128693,0.00034831,2]
[359873518,1746396638819,-1857.43804458,0.00034831,31]
[359873519,1746396638829,-5000.0,0.00034834,2]
[359873520,1746396638839,-177.33855432,0.000351,2]
[359873521,1746396638848,-1857.43804458,0.00035107,32]
[359873522,1746396638858,-560.0,0.00035144,2]
[359873523,1746396638868,-160.0,0.00035166,3]
[359873524,1746396638878,-160.0,0.00035166,3]
[359873525,1746396638888,-299.8699379,0.00035199,7]
[359873526,1746396638898,-417.97107598,0.00035199,7]
[359873527,1746396638908,-2240.0,0.00035286,3]
[359873528,1746396638917,-1857.43804458,0.00035383,32]
[359873529,1746396638927,-500.64140692,0.00035425,3]
[359873530,1746396638936,-500.0,0.00035425,5]
[359873531,1746396638947,-501.44459331,0.00035425,5]
[359873532,1746396638957,-500.0,0.00035425,5]
[359873533,1746396638967,-500.0,0.00035425,5]
[359873534,1746396638977,-500.0,0.00035425,5]
[359873535,1746396638987,-502.60616714,0.00035425,5]
[359873536,1746396638997,-500.0,0.00035425,5]
[359873537,1746396639006,-500.0,0.00035425,5]
[359873538,1746396639018,-500.0,0.00035425,5]
[359873539,1746396639028,-300.0,0.00035425,5]
[359873540,1746396639038,-500.83280941,0.00035425,2]
[359873541,1746396639048,-500.0,0.00035425,5]
[359873542,1746396639058,-500.46298553,0.00035425,5]
[359873543,1746396639067,-507.78518072,0.00035425,5]
[359873544,1746396639078,-503.63309518,0.00035425,5]
[359873545,1746396639087,-500.0,0.00035425,5]
[359873546,1746396639097,-500.0,0.00035425,5]
[359873547,1746396639107,-500.0,0.00035425,5]
[359873548,1746396639117,-507.49178017,0.00035425,5]
[359873549,1746396639127,-500.0,0.00035425,2]
[359873550,1746396639137,-500.0,0.00035425,5]
[359873551,1746396639147,-500.41062587,0.00035425,5]
[359873552,1746396639157,-500.0,0.00035425,5]
[359873553,1746396639167,-160.6617052,0.00035425,2]
[359873554,1746396639178,-500.0,0.00035425,5]
[359873555,1746396639188,-1857.43804458,0.00035659,33]
[359873556,1746396639198,-222.56819844,0.00035733,15]
[359873557,1746396639208,-160.0,0.00035876,2]
[359873558,1746396639218,-473.89984331,0.0003589,2]
[359873559,1746396639227,-1857.43804458,0.00035934,33]
[359873560,1746396639237,-1690.11453037,0.00035982,2]
[359873561,1746396639247,-152.12,0.00036,31]
[359873562,1746396639256,-152.12,0.00036,31]
[359873563,1746396639266,-152.12,0.00036,31]
[359873564,1746396639276,-152.12,0.00036,31]
[359873565,1746396639285,-152.12,0.00036,31]
[359873566,1746396639294,-152.12,0.00036,31]
[359873567,1746396639306,-152.12,0.00036,31]
[359873568,1746396639315,-152.12,0.00036,31]
[359873569,1746396639325,-152.12,0.00036,31]
[359873570,1746396639334,-152.12,0.00036,31]
[359873571,1746396639344,-152.12,0.00036,31]
[359873572,1746396639355,-152.12,0.00036,31]
[359873573,1746396639365,-152.12,0.00036,31]
[359873574,1746396639374,-152.12,0.00036,31]
[359873575,1746396639384,-152.12,0.00036,31]
[359873576,1746396639394,-152.12,0.00036,31]
[359873577,1746396639403,-152.12,0.00036,31]
[359873578,1746396639413,-152.12,0.00036,31]
[359873579,1746396639422,-152.12,0.00036,31]
[359873580,1746396639432,-152.12,0.00036,31]
[359873581,1746396639442,-500.0,0.00036,5]
[359873582,1746396639452,-151.0,0.00036,31]
[359873583,1746396639461,-500.0,0.00036,31]
[359873584,1746396639471,-151.0,0.00036,31]
[359873585,1746396639482,-151.0,0.00036,31]
[359873586,1746396639492,-228.65173529,0.00036,31]
[359873587,1746396639502,-151.0,0.00036,31]
[359873588,1746396639512,-151.0,0.00036,31]
[359873589,1746396639522,-151.0,0.00036,31]
[359873590,1746396639531,-151.0,0.00036,31]
[359873591,1746396639541,-500.0,0.00036,31]
[359873593,1746396639653,-152.1796283,0.00036,31]
[359873595,1746396639663,-151.0,0.00036,31]
[359873597,1746396639674,-151.0,0.00036,31]
[359873599,1746396639684,-500.0,0.00036,31]
[359873601,1746396639693,-500.0,0.00036,31]
[359873603,1746396639703,-151.0,0.00036,31]
[359873605,1746396639712,-256.38723193,0.00036,31]
[359873607,1746396639722,-151.0,0.00036,31]
[359873609,1746396639731,-151.0,0.00036,31]
[359873611,1746396639741,-500.0,0.00036,31]
[359873613,1746396639750,-500.0,0.00036,31]
[359873615,1746396639759,-151.0,0.00036,31]
[359873617,1746396639769,-500.0,0.00036,31]
[359873619,1746396639778,-151.0,0.00036027,31]
[359873621,1746396639788,-500.0,0.00036027,31]
[359873623,1746396639798,-151.0,0.00036027,31]
[359873625,1746396639808,-151.0,0.00036027,31]
[359873627,1746396639818,-151.0,0.00036027,31]
[359873629,1746396639828,-151.0,0.00036027,31]
[359873631,1746396639837,-151.0,0.00036027,31]
[359873633,1746396639846,-151.0,0.00036027,31]
[359873634,1746396639856,-500.0,0.00036027,31]
[359873635,1746396639866,-253.32392144,0.00036027,31]
[359873636,1746396639875,-224.45288229,0.00036027,31]
[359873638,1746396639893,-500.0,0.00036027,31]
[359873639,1746396639905,-500.0,0.00036027,31]
[359873640,1746396639915,-235.29059309,0.00036027,31]
[359873641,1746396639926,-257.79157703,0.00036027,31]
[359873642,1746396639937,-500.0,0.00036027,31]
[359873643,1746396639947,-547.0,0.00036027,31]
[359873644,1746396639958,-151.0,0.00036027,31]
[359873645,1746396639968,-500.0,0.00036027,31]
[359873646,1746396639978,-151.0,0.00036055,31]
[359873647,1746396639989,-500.0,0.00036055,31]
[359873648,1746396639999,-151.0,0.00036055,31]
[359873649,1746396640009,-245.90254686,0.00036055,31]
[359873650,1746396640020,-151.0,0.00036055,31]
[359873651,1746396640031,-151.0,0.00036055,31]
[359873652,1746396640041,-500.0,0.00036055,31]
[359873653,1746396640051,-500.0,0.00036055,31]
[359873654,1746396640062,-349.0,0.00036055,31]
[359873655,1746396640071,-500.0,0.00036055,31]
[359873656,1746396640081,-151.0,0.00036055,31]
[359873657,1746396640091,-500.0,0.00036055,31]
[359873658,1746396640101,-198.0,0.00036082,31]
[359873659,1746396640112,-151.0,0.00036082,31]
[359873660,1746396640122,-158.0,0.00036082,31]
[359873661,1746396640132,-151.0,0.00036082,31]
[359873662,1746396640142,-500.0,0.00036082,31]
[359873663,1746396640152,-500.0,0.00036082,31]
[359873664,1746396640162,-500.0,0.00036082,31]
[359873665,1746396640174,-245.0,0.00036082,31]
[359873666,1746396640184,-245.0,0.00036082,31]
[359873667,1746396640194,-500.0,0.00036083,60]
[359873668,1746396640204,-151.0,0.0003611,31]
[359873669,1746396640214,-198.0,0.0003611,31]
[359873670,1746396640223,-396.0,0.0003611,31]
[359873671,1746396640233,-356.52448871,0.0003611,31]
[359873672,1746396640243,-500.0,0.0003611,31]
[359873673,1746396640253,-245.0,0.00036137,31]
[359873674,1746396640263,-500.0,0.00036137,31]
[359873675,1746396640273,-1857.43804458,0.0003621,34]
[359873676,1746396640282,-465.14494129,0.00036269,2]
[359873677,1746396640292,-1690.11453036,0.00036459,2]
[359873678,1746396640303,-1857.43804458,0.00036486,34]
[359873679,1746396640315,-177.33855431,0.0003649,2]
[359873680,1746396640325,-151.194147,0.000365,14]
[359873681,1746396640335,-151.0,0.000365,14]
[359873682,1746396640344,-151.0,0.000365,14]
[359873683,1746396640354,-5000.0,0.000365,2]
[359873684,1746396640365,-403.0,0.00036636,2]
[359873685,1746396640374,-1857.43804458,0.00036762,35]
[359873686,1746396640385,-2237.5592458,0.00036863,4]
[359873687,1746396640396,-1690.11453036,0.00036936,2]
[359873688,1746396640406,-1857.43804458,0.00037038,36]
[359873689,1746396640417,-600.0,0.00037069,5]
[359873690,1746396640426,-182.19332975,0.00037166,3]
[359873691,1746396640436,-160.0,0.00037166,3]
[359873692,1746396640446,-160.0,0.00037166,3]
[359873693,1746396640456,-502.9783219,0.00037196,2]
[359873694,1746396640465,-12500.0,0.00037311,5]
[359873695,1746396640476,-1857.43804458,0.00037314,36]
[359873696,1746396640487,-3253.27725292,0.0003732,5]
[359873697,1746396640496,-12500.0,0.0003732,5]
[359873698,1746396640505,-151.0,0.0003732,14]
[359873699,1746396640515,-151.0,0.0003732,14]
[359873700,1746396640525,-1690.11453036,0.00037413,2]
[359873701,1746396640535,-502.9783219,0.00037523,2]
[359873702,1746396640545,-1857.43804458,0.0003759,37]
[359873703,1746396640555,-502.97832192,0.00037674,2]
[359873704,1746396640564,-342.36,0.0003768,3]
[359873705,1746396640574,-58239.4960426,0.0003769,3]
[359873706,1746396640584,-151.0,0.0003769,14]
[359873707,1746396640594,-151.0,0.0003769,14]
[359873708,1746396640603,-160.0,0.0003769,3]
[359873709,1746396640614,-152.12,0.000377,31]
[359873710,1746396640623,-152.12,0.000377,31]
[359873711,1746396640633,-152.12,0.000377,31]
[359873712,1746396640643,-152.12,0.000377,31]
[359873713,1746396640654,-152.12,0.000377,31]
[359873714,1746396640664,-152.12,0.000377,31]
[359873715,1746396640675,-152.12,0.000377,31]
[359873716,1746396640685,-152.12,0.000377,31]
[359873717,1746396640696,-152.12,0.000377,31]
[359873718,1746396640706,-152.12,0.000377,31]
[359873719,1746396640717,-152.12,0.000377,31]
[359873720,1746396640727,-152.12,0.000377,31]
[359873721,1746396640737,-152.12,0.000377,31]
[359873722,1746396640747,-152.12,0.000377,31]
[359873723,1746396640757,-152.12,0.000377,31]
[359873724,1746396640766,-152.12,0.000377,31]
[359873725,1746396640777,-152.12,0.000377,31]
[359873726,1746396640787,-152.12,0.000377,31]
[359873727,1746396640797,-152.12,0.000377,31]
[359873728,1746396640807,-152.12,0.000377,31]
[359873729,1746396640817,-783.0,0.00037772,2]
[359873730,1746396640827,-945.33916436,0.00037805,2]
[359873731,1746396640836,-1857.43804458,0.00037866,37]
[359873732,1746396640846,-177.33855431,0.0003788,2]
[359873733,1746396640857,-1370.79185124,0.0003789,2]
[359873734,1746396640866,-1690.11453036,0.0003789,2]
[359873735,1746396640876,-500.0,0.000379,120]
[359873736,1746396640885,-500.0,0.000379,120]
[359873737,1746396640895,-573.76,0.000379,120]
[359873738,1746396640904,-13237.42745874,0.000379,5]
[359873739,1746396640914,-160.0,0.00037945,2]
[359873740,1746396640924,-160.0,0.00037948,2]
[359873742,1746396640933,-519.69692734,0.00037973,5]
[359873743,1746396640944,-393.41134768,0.00037973,5]
[359873744,1746396640953,-500.0,0.00037973,5]
[359873746,1746396640963,-500.0,0.00037973,5]
[359873747,1746396640972,-500.0,0.00037973,5]
[359873748,1746396640982,-500.0,0.00037973,5]
[359873749,1746396640991,-500.0,0.00037973,5]
[359873750,1746396641001,-534.26520432,0.00037973,5]
[359873751,1746396641010,-500.0,0.00037973,5]
[359873752,1746396641020,-500.0,0.00037973,5]
[359873753,1746396641030,-500.0,0.00037973,5]
[359873754,1746396641039,-500.0,0.00037973,5]
[359873755,1746396641049,-500.0,0.00037973,5]
[359873756,1746396641060,-500.0,0.00037973,5]
[359873757,1746396641070,-500.0,0.00037973,5]
[359873758,1746396641080,-500.25379618,0.00037973,5]
[359873759,1746396641090,-500.0,0.00037973,5]
[359873760,1746396641100,-500.42520421,0.00037973,5]
[359873761,1746396641110,-500.0,0.00037973,5]
[359873762,1746396641119,-500.0,0.00037973,5]
[359873763,1746396641129,-500.0,0.00037973,5]
[359873764,1746396641139,-500.85187339,0.00037973,5]
[359873765,1746396641148,-427.23636055,0.00037973,5]
[359873766,1746396641158,-151.19898039,0.00037973,5]
[359873767,1746396641168,-504.172178,0.00037973,5]
[359873768,1746396641178,-500.0,0.00037973,5]
[359873769,1746396641187,-500.0,0.00037973,5]
[359873770,1746396641196,-500.57392471,0.00037973,5]
[359873771,1746396641206,-500.0,0.00037973,5]
[359873772,1746396641215,-500.0,0.00037973,5]
[359873773,1746396641225,-500.0,0.00037973,3]
[359873774,1746396641235,-500.0,0.00037973,5]
[359873775,1746396641245,-500.24336171,0.00037973,5]
[359873776,1746396641255,-500.12849803,0.00037973,5]
[359873777,1746396641264,-500.08057649,0.00037973,5]
[359873778,1746396641274,-500.0,0.00037973,5]
[359873779,1746396641284,-500.0,0.00037973,5]
[359873780,1746396641293,-512.90357577,0.00037973,5]
[359873781,1746396641306,-501.114578,0.00037973,5]
[359873782,1746396641315,-500.0,0.00037973,5]
[359873783,1746396641325,-500.0,0.00037973,5]
[359873784,1746396641335,-58239.4960426,0.0003798,3]
[359873785,1746396641345,-435.16,0.0003798,3]
[359873786,1746396641355,-279.27,0.0003798,3]
[359873787,1746396641365,-837.85,0.0003798,3]
[359873788,1746396641375,-513.55,0.0003798,3]
[359873789,1746396641385,-171.18,0.0003798,3]
[359873790,1746396641396,-151.0,0.0003798,14]
[359873791,1746396641405,-151.0,0.0003798,14]
[359873792,1746396641415,-151.0,0.0003798,14]
[359873793,1746396641425,-151.0,0.0003798,14]
[359873794,1746396641434,-151.0,0.0003798,14]
[359873795,1746396641443,-151.0,0.0003798,14]
[359873796,1746396641453,-151.0,0.0003798,14]
[359873797,1746396641462,-270.530856,0.0003798,14]
[359873798,1746396641472,-232957.984171,0.0003798,3]
[359873799,1746396641481,-45941.40306423,0.0003799,2]
[359873800,1746396641491,-151.0,0.0003799,14]
[359873801,1746396641500,-151.0,0.0003799,14]
[359873802,1746396641510,-153.516688,0.0003799,14]
[359873803,1746396641519,-151.0,0.0003799,14]
[359873804,1746396641529,-151.0,0.0003799,14]
[359873805,1746396641539,-151.0,0.0003799,14]
[359873806,1746396641549,-285.848228,0.0003799,14]
[359873807,1746396641558,-1773.453515,0.0003799,2]
[359873808,1746396641568,-1773.453515,0.0003799,2]
[359873809,1746396641578,-1773.453515,0.0003799,2]
[359873810,1746396641588,-1773.453515,0.0003799,2]
[359873811,1746396641598,-151.0,0.0003799,14]
[359873812,1746396641608,-151.0,0.0003799,14]
[359873813,1746396641617,-151.0,0.0003799,14]
[359873814,1746396641627,-151.0,0.0003799,14]
[359873815,1746396641636,-151.0,0.0003799,14]
[359873816,1746396641646,-151.0,0.0003799,14]
[359873817,1746396641655,-151.0,0.0003799,14]
[359873818,1746396641665,-151.0,0.0003799,2]
[359873819,1746396641674,-151.0,0.0003799,2]
[359873820,1746396641684,-151.0,0.0003799,2]
[359873821,1746396641693,-151.0,0.0003799,14]
[359873822,1746396641703,-151.0,0.0003799,14]
[359873823,1746396641713,-151.0,0.0003799,14]
[359873824,1746396641723,-151.0,0.0003799,14]
[359873825,1746396641732,-151.0,0.0003799,14]
[359873826,1746396641742,-151.0,0.0003799,14]
[359873827,1746396641753,-151.0,0.0003799,14]
[359873828,1746396641763,-151.0,0.0003799,14]
[359873829,1746396641772,-151.0,0.0003799,14]
[359873830,1746396641782,-151.0,0.0003799,14]
[359873831,1746396641791,-151.0,0.0003799,14]
[359873832,1746396641893,-151.0,0.0003799,14]
[359873833,1746396641904,-236.734354,0.0003799,14]
[359873834,1746396641914,-155.184956,0.0003799,14]
[359873835,1746396641924,-151.0,0.0003799,14]
[359873836,1746396641934,-151.0,0.0003799,14]
[359873837,1746396641944,-151.0,0.0003799,14]
[359873838,1746396641953,-151.0,0.0003799,14]
[359873839,1746396641963,-151.0,0.0003799,14]
[359873840,1746396641973,-151.0,0.0003799,14]
[359873841,1746396641983,-1545.3708098,0.00038,120]
[359873842,1746396641992,-195850.0,0.00038,2]
[359873843,1746396642002,-8300.0,0.00038,2]
[359873844,1746396642012,-3441.02,0.00038,7]
[359873845,1746396642022,-1773.453515,0.00038,2]
[359873846,1746396642031,-1773.453515,0.00038,2]
[359873847,1746396642040,-151.0,0.00038,14]
[359873848,1746396642050,-151.0,0.00038,14]
[359873849,1746396642059,-151.0,0.00038,2]
[359873850,1746396642069,-151.0,0.00038,14]
[359873851,1746396642078,-151.0,0.00038,14]
[359873852,1746396642088,-151.0,0.00038,14]
[359873853,1746396642098,-4721.0,0.00038,60]
[359873854,1746396642107,-5684.34,0.00038,30]
[359873855,1746396642117,-151.0,0.00038,14]
[359873856,1746396642126,-160.0,0.00038,7]
[359873857,1746396642135,-151.0,0.00038,14]
[359873858,1746396642145,-3135.0,0.0003808,3]
[359873859,1746396642155,-1857.43804458,0.00038141,38]
[359873860,1746396642165,-5000.0,0.00038167,2]
[359873861,1746396642175,-999.0,0.00038356,120]
[359873862,1746396642185,-179.08150384,0.0003839,2]
[359873863,1746396642195,-500.0,0.000384,30]
[359873864,1746396642205,-1857.43804458,0.00038417,38]
[359873865,1746396642215,-1773.453515,0.0003847,2]
[359873866,1746396642225,-1773.453515,0.0003847,2]
[359873867,1746396642234,-1773.453515,0.0003847,2]
[359873868,1746396642243,-1773.453515,0.0003847,2]
[359873869,1746396642253,-151.0,0.0003847,14]
[359873870,1746396642262,-151.0,0.0003847,14]
[359873871,1746396642272,-151.0,0.0003847,14]
[359873872,1746396642282,-151.0,0.0003847,14]
[359873873,1746396642291,-151.0,0.0003847,14]
[359873875,1746396642304,-151.0,0.0003847,14]
[359873877,1746396642314,-151.0,0.0003847,14]
[359873879,1746396642323,-151.0,0.0003847,14]
[359873880,1746396642333,-168.79546,0.0003847,14]
[359873882,1746396642343,-151.0,0.0003847,14]
[359873884,1746396642353,-500.0,0.00038473,5]
[359873886,1746396642362,-500.0,0.00038473,5]
[359873888,1746396642372,-151.0,0.00038473,14]
[359873890,1746396642383,-160.0,0.00038475,2]
[359873892,1746396642392,-153.247129,0.0003848,14]
[359873894,1746396642402,-151.0,0.0003848,14]
[359873896,1746396642412,-1773.453515,0.0003848,2]
[359873898,1746396642421,-1773.453515,0.0003848,2]
[359873900,1746396642432,-151.0,0.0003848,14]
[359873902,1746396642441,-151.0,0.0003848,14]
[359873904,1746396642451,-276.164008,0.0003848,14]
[359873906,1746396642460,-151.0,0.0003848,14]
[359873908,1746396642470,-151.0,0.0003848,14]
[359873910,1746396642479,-151.0,0.0003848,14]
[359873912,1746396642489,-60044.7557889,0.0003848,2]
[359874092,1746396645963,-151.0,0.0003848,2]
[359874093,1746396645973,-802.07,0.0003848,2]
[359874094,1746396646291,-1561.13540271,0.0003848,2]
[359874128,1746397633117,-154.95271401,0.000249,2]
[359874129,1746397657311,-377.51573122,0.000228,2]
[359874130,1746397661175,-284.20570537,0.000228,2]
[359874131,1746397666457,-471.31051503,0.000228,2]
[359874132,1746397672624,-265.00542295,0.000228,2]
[359874133,1746397675975,-200.0,0.000228,2]
[359874134,1746397678739,-246.9154339,0.00022572,10]
[359874135,1746397683692,-216.01936581,0.00022572,10]
[359874136,1746397687971,-168.91208258,0.00022572,10]
[359874138,1746397693616,-368.15311771,0.00022572,10]
[359874139,1746397697468,-20.52164335,0.00022572,10]
[359874140,1746397708336,-1351.0,0.000228,2]
[359874142,1746397721311,-204.99408787,0.00022,7]
[359874143,1746397761090,-490.0,0.00022,7]
[359874144,1746397765171,-250.7642658,0.00022,7]
[359874145,1746397765192,-517.55555447,0.000228,2]
[359874146,1746397765214,-1052.81789965,0.00023,2]
[359874147,1746397765234,-5791.44602529,0.000234,2]
[359874148,1746397765254,-151.0,0.00024,14]
[359874149,1746397765275,-300.0,0.00024899,2]
[359874150,1746397765295,-95.04728599,0.000249,2]
[359874151,1746397765314,-1000.0,0.000249,2]
[359874152,1746397765334,-500.0,0.00024973,2]
[359874153,1746397765353,-616.0,0.00025,2]
[359874154,1746397765372,-9489.13730635,0.00025,7]
[359874179,1746397832027,-500.0,0.00024973,2]
[359874180,1746397832039,-300.0,0.00024999,2]
[359874181,1746397832054,-1000.7397,0.00024999,2]
[359874182,1746397832092,-199.2603,0.00024999,2]
[359874183,1746397832105,-300.0,0.00024999,2]
[359874184,1746397832120,-3382.63233189,0.00025,7]
[359874186,1746397832135,-29278.62542237,0.00025,10]
[359874188,1746397832147,-20802.31602613,0.00025,2]
[359874190,1746397832382,-1579.13552426,0.00025,2]
[359874229,1746397841664,-0.02926078,0.00024999,2]
[359874379,1746397843121,-203.19790583,0.00024999,2]
[359874381,1746397843131,-500.0,0.00024999,2]
[359874383,1746397843140,-270.6233355,0.00024999,2]
[359874385,1746397843149,-173.43864888,0.00024999,2]
[359874387,1746397843160,-500.0,0.00024999,2]
[359874389,1746397843169,-500.0,0.00024999,2]
[359874391,1746397843179,-500.0,0.00024999,2]